fUSD/lending_fUSD_20251105
["ID","MTS","AMOUNT","RATE_DAILY","PERIOD"]
[393187566,1762305047241,-152.94245179,0.00025782,7]
[393187567,1762305047250,-471.74383243,0.00027397,31]
[393187568,1762305047260,-738.059033,0.00027397,31]
[393187569,1762305047269,-151.0,0.00027397,31]
[393187570,1762305047279,-738.059033,0.00027397,31]
[393187571,1762305047288,-151.0,0.00027397,31]
[393187572,1762305047298,-151.0,0.00027397,31]
[393187573,1762305047313,-151.0,0.00027397,31]
[393187574,1762305047322,-151.0,0.00027397,31]
[393187575,1762305047331,-151.0,0.00027397,31]
[393187576,1762305047340,-151.0,0.00027397,31]
[393187577,1762305047350,-151.0,0.00027397,31]
[393187578,1762305047360,-236.886184,0.00027397,31]
[393187579,1762305047369,-151.0,0.00027397,31]
[393187580,1762305047379,-151.0,0.00027397,10]
[393187581,1762305047388,-151.0,0.00027397,31]
[393187582,1762305047398,-151.0,0.00027397,10]
[393187583,1762305047407,-151.0,0.00027397,10]
[393187584,1762305047417,-151.0,0.00027397,10]
[393187585,1762305047426,-151.0,0.00027397,10]
[393187586,1762305047434,-162.995604,0.00027397,10]
[393187587,1762305047443,-738.059033,0.00027397,31]
[393187588,1762305047453,-738.059033,0.00027397,31]
[393187589,1762305047462,-738.059033,0.00027397,31]
[393187590,1762305047471,-738.059033,0.00027397,31]
[393187591,1762305047480,-738.059033,0.00027397,31]
[393187592,1762305047489,-738.059036,0.00027397,31]
[393187593,1762305047498,-151.0,0.00027397,31]
[393187594,1762305047507,-151.0,0.00027397,31]
[393187595,1762305047517,-151.0,0.00027397,31]
[393187596,1762305047526,-151.0,0.00027397,31]
[393187597,1762305047536,-133.45686563,0.00027397,31]
[393187598,1762305047548,-17.54313437,0.00027397,31]
[393187599,1762305047558,-151.0,0.00027397,31]
[393187600,1762305047567,-151.0,0.00027397,31]
[393187601,1762305047576,-151.0,0.00027397,31]
[393187602,1762305047585,-259.778914,0.00027397,31]
[393187603,1762305047595,-151.0,0.00027397,31]
[393187604,1762305047604,-151.0,0.00027397,31]
[393187605,1762305047613,-151.0,0.00027397,31]
[393187606,1762305047622,-151.0,0.00027397,31]
[393187607,1762305047632,-260.592708,0.00027397,31]
[393187608,1762305047641,-151.0,0.00027397,31]
[393187609,1762305047651,-151.0,0.00027397,31]
[393187610,1762305047660,-151.0,0.00027397,31]
[393187611,1762305047670,-151.0,0.00027397,31]
[393187612,1762305047679,-164.048031,0.00027397,31]
[393187613,1762305047688,-151.0,0.00027397,31]
[393187614,1762305047697,-151.0,0.00027397,31]
[393187615,1762305047707,-156.559295,0.00027397,31]
[393187616,1762305047716,-156.276341,0.00027397,31]
[393187617,1762305047726,-151.0,0.00027397,31]
[393187618,1762305047735,-151.0,0.00027397,31]
[393187619,1762305047744,-159.378959,0.00027397,31]
[393187620,1762305047754,-151.0,0.00027397,31]
[393187621,1762305047763,-151.0,0.00027397,31]
[393187622,1762305047772,-151.0,0.00027397,31]
[393187623,1762305047781,-151.0,0.00027397,31]
[393187624,1762305047791,-151.0,0.00027397,31]
[393187625,1762305047799,-151.0,0.00027397,31]
[393187626,1762305047809,-151.0,0.00027397,31]
[393187627,1762305047819,-151.0,0.00027397,31]
[393187628,1762305047828,-151.0,0.00027397,31]
[393187629,1762305047837,-151.0,0.00027397,31]
[393187630,1762305047846,-151.0,0.00027397,31]
[393187631,1762305047855,-151.0,0.00027397,31]
[393187632,1762305047864,-128.38018661,0.00027397,31]
[393187633,1762305047881,-22.61981339,0.00027397,31]
[393187634,1762305047890,-151.0,0.00027397,31]
[393187635,1762305047900,-151.0,0.00027397,31]
[393187636,1762305047910,-151.0,0.00027397,31]
[393187637,1762305047921,-77.77488416,0.00027397,31]
[393187640,1762305127732,239.84119403,0.00038268,30]
[393187641,1762305130795,578.20924308,0.00038268,30]
[393187642,1762305202358,593.91840908,0.00038268,120]
[393187643,1762305273590,-500.0,0.00018073,2]
[393187644,1762305273611,-195.0,0.0001821,2]
[393187645,1762305273632,-153.79597611,0.00018347,2]
[393187646,1762305273653,-970.90212358,0.00018621,2]
[393187647,1762305273673,-195.0,0.00019115,2]
[393187648,1762305273694,-314.06323891,0.0001988,2]
[393187649,1762305273926,-300.0,0.0001988,2]
[393187650,1762305273949,-195.0,0.0001988,2]
[393187651,1762305273970,-500.0,0.00020653,2]
[393187652,1762305273990,-500.0,0.00020653,2]
[393187653,1762305274011,-438.92674076,0.00020653,2]
[393187654,1762305345659,500.0,0.00020653,2]
[393187655,1762305370205,562.63395139,0.00038268,120]
[393187656,1762305416757,500.0,0.00028416,120]
[393187714,1762305805616,397.3,0.00013699,2]
[393187715,1762305805651,397.3,0.00020187,2]
[393187737,1762305883596,500.00000001,0.00038265,120]
[393187738,1762305892961,929.38,0.00025098,120]
[393187739,1762305893181,929.38,0.00028236,120]
[393187746,1762305908047,4442.71192064,0.00018,2]
[393187748,1762305909143,166.0,0.00028253,120]
[393187750,1762305910602,166.0,0.00029666,120]
[393187768,1762306014071,5000.0,0.000162,5]
[393187787,1762306071226,20000.0,0.00015,2]
[393187788,1762306071457,30000.0,0.00015,2]
[393187789,1762306071485,72457.13701196,0.00015,2]
[393187807,1762306117309,500.0,0.00027999,120]
[393187809,1762306119588,755.00000011,0.0003,120]
[393187817,1762306155102,500.0,0.00027999,120]
[393187839,1762306205908,329.02967364,0.00038265,120]
[393187849,1762306222333,162.74409792,0.00038265,120]
[393187850,1762306223914,184.50000264,0.00038265,120]
[393187851,1762306226358,331.4057023,0.00038265,120]
[393187853,1762306231084,151.80205205,0.00038265,120]
[393187863,1762306231697,-934.745687,0.00017809,2]
[393187864,1762306231706,-163.86044546,0.00017899,2]
[393187865,1762306231715,-500.0,0.00017973,2]
[393187866,1762306231723,-500.0,0.00017973,2]
[393187867,1762306231732,-508.66972203,0.00017973,2]
[393187868,1762306231741,-500.0,0.00017973,2]
[393187869,1762306231750,-500.0,0.00017973,2]
[393187870,1762306231763,-502.33080658,0.00017973,2]
[393187871,1762306231772,-300.0,0.00017998,2]
[393187872,1762306231781,-1200.0,0.00017998,2]
[393187873,1762306231791,-300.0,0.00017998,2]
[393187874,1762306231800,-150.0,0.00017998,2]
[393187875,1762306231810,-782.87685041,0.00017999,2]
[393187876,1762306231819,-318.88320706,0.00017999,2]
[393187877,1762306231828,-384.4519072,0.00017999,2]
[393187878,1762306231838,-500.0,0.00017999,2]
[393187879,1762306231848,-432.06274504,0.00017999,2]
[393187880,1762306231857,-500.0,0.00017999,2]
[393187881,1762306231866,-500.0,0.00017999,2]
[393187882,1762306231876,-500.0,0.00017999,2]
[393187884,1762306231885,-500.0,0.00017999,2]
[393187885,1762306231895,-309.35714195,0.00017999,2]
[393187887,1762306231904,-500.0,0.00017999,2]
[393187889,1762306231913,-418.45075714,0.00017999,2]
[393187891,1762306231922,-500.0,0.00017999,2]
[393187892,1762306231931,-500.0,0.00017999,2]
[393187894,1762306231941,-500.0,0.00017999,2]
[393187896,1762306231951,-500.0,0.00017999,2]
[393187898,1762306231960,-165.18513723,0.00017999,2]
[393187900,1762306231969,-500.0,0.00017999,2]
[393187902,1762306231978,-13329.71576695,0.00018,2]
[393187904,1762306231990,-1273.24724777,0.00018,2]
[393187906,1762306232001,-793.30310123,0.00018,2]
[393187908,1762306232018,-406.09709452,0.00018,2]
[393187910,1762306232029,-571.40658039,0.00018,2]
[393187912,1762306232040,-1452.62439007,0.00018,2]
[393187915,1762306232051,-1002.67532487,0.00018,2]
[393187917,1762306232061,-320.0,0.00018,2]
[393187919,1762306232072,-2397.99031068,0.00018,2]
[393187921,1762306232084,-949.15632863,0.00018,2]
[393187923,1762306232094,-373.2980954,0.00018,2]
[393187925,1762306232105,-96601.10608521,0.00018,2]
[393187927,1762306232120,-9950.0,0.00018,2]
[393187928,1762306232131,-24762.92239226,0.00018,2]
[393187929,1762306232142,-922.41530248,0.00018,2]
[393187930,1762306232152,-956.19309319,0.00018,2]
[393187931,1762306232163,-1175.54681999,0.00018,2]
[393187932,1762306232174,-506.02,0.00018,2]
[393187933,1762306232189,-4031.18679052,0.00018,2]
[393187934,1762306232200,-3115.353793,0.00018,2]
[393187935,1762306232265,159.61555286,0.00038265,120]
[393187936,1762306236582,432.0,0.00030137,120]
[393187943,1762306237569,-2853.58454971,0.00018,2]
[393187944,1762306237581,-9105.96896468,0.00018,2]
[393187945,1762306237593,-360.85435898,0.00018,2]
[393187946,1762306237677,-1148.14462424,0.00018,2]
[393187947,1762306237689,-25091.87563103,0.00018,2]
[393187948,1762306237699,-2423.61645214,0.000183,2]
[393187949,1762306237709,-181.3398245,0.00018521,2]
[393187950,1762306237719,-1000.0,0.00018521,2]
[393187951,1762306237728,-500.0,0.00018521,2]
[393187952,1762306237737,-1000.0,0.00018521,2]
[393187953,1762306237747,-1500.0,0.00019068,2]
[393187954,1762306237757,-250.0,0.0001959,2]
[393187955,1762306237771,-300.0,0.0001959,2]
[393187956,1762306237781,-178.5877675,0.0001959,2]
[393187958,1762306237792,-1377.05619245,0.00019616,2]
[393187960,1762306237802,-420.0,0.00019638,2]
[393187962,1762306237811,-420.0,0.00019638,2]
[393187964,1762306237821,-1680.0,0.00019734,2]
[393187966,1762306237832,-224.51942522,0.00021,2]
[393187982,1762306238072,-32870.15599262,0.00021,2]
[393187983,1762306238084,-1181.43161288,0.00021,2]
[393187984,1762306238094,-195.01197734,0.00021,2]
[393187985,1762306238105,-174.79,0.00021184,2]
[393187986,1762306238115,-673.27120067,0.000214,2]
[393187987,1762306238124,-587.0,0.00021427,2]
[393187988,1762306238134,-587.0,0.00021427,2]
[393187989,1762306238144,-500.0,0.00021473,2]
[393187990,1762306238153,-500.0,0.00021473,2]
[393187991,1762306238163,-32413.98752751,0.000215,2]
[393187993,1762306239051,471.78999176,0.00038265,120]
[393187995,1762306239623,-20017.03772459,0.000215,2]
[393187996,1762306239636,-4970.87619473,0.000215,2]
[393187997,1762306239646,-219.92237835,0.000215,2]
[393187998,1762306239658,-2351.0,0.00021638,2]
[393187999,1762306239667,-166.66,0.00021726,2]
[393188000,1762306239677,-500.0,0.0002189,2]
[393188001,1762306239686,-4106.25636954,0.00022,2]
[393188002,1762306239696,-160.97,0.00022,2]
[393188003,1762306239706,-807.90335755,0.00022021,2]
[393188004,1762306239715,-1000.0,0.00022021,2]
[393188005,1762306239724,-489.5341435,0.000221,2]
[393188006,1762306239733,-237.86907179,0.0002211,2]
[393188008,1762306239742,-163.25,0.00022131,2]
[393188009,1762306239751,-500.0,0.00022163,2]
[393188010,1762306239761,-500.0,0.00022163,2]
[393188011,1762306239772,-542.89918106,0.00022163,2]
[393188012,1762306239782,-500.0,0.00022163,2]
[393188013,1762306239791,-500.0,0.00022163,2]
[393188014,1762306239800,-500.0,0.00022163,2]
[393188015,1762306239809,-516.00653523,0.00022163,2]
[393188016,1762306239818,-166.66,0.00022183,30]
[393188017,1762306239828,-500.0,0.0002225,2]
[393188018,1762306239837,-200.0,0.0002225,2]
[393188019,1762306239846,-500.0,0.0002225,2]
[393188020,1762306239855,-215.75423327,0.0002225,2]
[393188021,1762306239865,-591.02947579,0.0002225,2]
[393188022,1762306239874,-500.0,0.0002225,2]
[393188023,1762306239883,-500.0,0.0002225,2]
[393188024,1762306239892,-500.0,0.0002225,2]
[393188025,1762306239902,-35139.148593,0.000225,2]
[393188026,1762306239911,-151.0,0.00022565,7]
[393188027,1762306239921,-1389.73286434,0.00022568,2]
[393188028,1762306239931,-166.66,0.00022641,30]
[393188029,1762306239940,-307.82,0.00022648,2]
[393188030,1762306239949,-517.65922778,0.0002271,2]
[393188031,1762306239959,-1009.8687602,0.0002271,2]
[393188032,1762306239968,-1000.0,0.0002271,2]
[393188033,1762306239977,-466.99648963,0.0002271,2]
[393188034,1762306239987,-1000.0,0.0002271,2]
[393188035,1762306239996,-912.69216128,0.0002271,2]
[393188036,1762306240006,-179.46,0.0002278,2]
[393188037,1762306240018,-643.36216237,0.00022798,2]
[393188038,1762306240028,-182.90004025,0.00022798,2]
[393188039,1762306240038,-1000.0,0.00022798,2]
[393188040,1762306240047,-974.23105428,0.00022798,2]
[393188041,1762306240058,-25.76894572,0.00022798,2]
[393188042,1762306240067,-1000.0,0.00022798,2]
[393188043,1762306240076,-154.66082908,0.00022806,2]
[393188044,1762306240085,-163.5,0.0002289,2]
[393188045,1762306240095,-19197.29561683,0.000229,2]
[393188046,1762306240104,-400.0,0.00022935,2]
[393188047,1762306240113,-435.40327286,0.00023,2]
[393188048,1762306240123,-997.4123682,0.00023,2]
[393188049,1762306240132,-150.0,0.00023053,2]
[393188050,1762306240142,-160.0,0.0002309,2]
[393188051,1762306240151,-166.66,0.00023098,30]
[393188052,1762306240160,-2559.55819196,0.000231,2]
[393188053,1762306240170,-51643.53153563,0.000232,2]
[393188054,1762306240179,-500.0,0.00023217,2]
[393188055,1762306240190,-1500.0,0.00023258,2]
[393188056,1762306240199,-1500.0,0.00023258,2]
[393188057,1762306240209,-1500.0,0.00023346,2]
[393188058,1762306240219,-1500.0,0.00023346,2]
[393188059,1762306240228,-1500.0,0.00023346,2]
[393188060,1762306240238,-823.0,0.00023379,2]
[393188061,1762306240247,-823.0,0.00023379,2]
[393188062,1762306240256,-200.0,0.000235,2]
[393188063,1762306240269,-166.66,0.00023555,30]
[393188064,1762306240279,-600.0,0.0002362,2]
[393188065,1762306240288,-3292.0,0.00023726,2]
[393188066,1762306240298,-673.2712006,0.00023795,2]
[393188067,1762306240307,-864.43774244,0.00023806,2]
[393188068,1762306240317,-2000.0,0.00023806,2]
[393188069,1762306240326,-1698.13116007,0.00023894,2]
[393188070,1762306240335,-2000.0,0.00023894,2]
[393188071,1762306240344,-2000.0,0.00023894,2]
[393188072,1762306240354,-516.86542965,0.00023993,2]
[393188073,1762306240363,-1010.37746812,0.00024,2]
[393188074,1762306240372,-772.97161209,0.00024,2]
[393188075,1762306240381,-3600.0,0.00024,2]
[393188076,1762306240390,-16043.28881846,0.00024,2]
[393188077,1762306240400,-166.66,0.00024013,30]
[393188078,1762306240409,-500.0,0.00024073,2]
[393188079,1762306240418,-405.7657011,0.00024079,2]
[393188080,1762306240427,-7450.3210998,0.00024079,2]
[393188081,1762306240436,-170917.8877215,0.00024079,2]
[393188082,1762306240446,-240.6269,0.00024093,2]
[393188083,1762306240455,-9999.99,0.00024093,2]
[393188084,1762306240464,-9999.99,0.00024093,2]
[393188085,1762306240474,-9999.99,0.00024093,2]
[393188086,1762306240483,-1451.73,0.00024093,2]
[393188087,1762306240492,-5786.18,0.00024093,2]
[393188088,1762306240501,-150.99,0.00024093,2]
[393188089,1762306240510,-999.99,0.00024093,2]
[393188091,1762306240523,-9999.99,0.000241,2]
[393188092,1762306240532,-499.99,0.000241,2]
[393188093,1762306240541,-417.44325636,0.0002421,2]
[393188094,1762306240551,-3657.88863295,0.0002421,2]
[393188095,1762306240560,-398.16663957,0.00024305,2]
[393188096,1762306240569,-274.03961248,0.00024354,2]
[393188097,1762306240579,-451.29711334,0.00024442,2]
[393188098,1762306240588,-1006.02031306,0.00024442,2]
[393188099,1762306240598,-500.0,0.00024621,2]
[393188100,1762306240607,-500.0,0.00024633,2]
[393188101,1762306240620,-500.0,0.00024633,2]
[393188102,1762306240630,-500.0,0.00024633,2]
[393188103,1762306240639,-591.20477657,0.0002465,2]
[393188104,1762306240649,-500.0,0.00024657,2]
[393188105,1762306240659,-500.0,0.00024694,2]
[393188106,1762306240668,-162.03096013,0.00024773,2]
[393188107,1762306240677,-150.0,0.00024773,2]
[393188108,1762306240689,-150.0,0.00024773,2]
[393188109,1762306240698,-122920.252613,0.000248,3]
[393188110,1762306240708,-2278.73871483,0.000248,2]
[393188111,1762306240717,-48957.1571684,0.000249,3]
[393188112,1762306240727,-500.0,0.00024932,2]
[393188113,1762306240736,-12239.2892921,0.0002499,3]
[393188114,1762306240745,-1075.76,0.00025,2]
[393188115,1762306240754,-601.31649127,0.00025,2]
[393188116,1762306240763,-1726.46286131,0.00025,2]
[393188117,1762306240778,-735.48114248,0.00025,2]
[393188118,1762306240787,-165.20270292,0.00025,2]
[393188119,1762306240796,-3108.99367,0.00025,2]
[393188120,1762306240805,-2225.98,0.00025163,2]
[393188121,1762306240814,-500.0,0.00025181,2]
[393188122,1762306240824,-500.0,0.00025181,2]
[393188123,1762306240834,-250.0,0.00025321,2]
[393188124,1762306240843,-250.0,0.00025321,2]
[393188125,1762306240853,-1075.76,0.000255,2]
[393188126,1762306240863,-409.0,0.0002551,2]
[393188127,1762306240873,-15365.0315767,0.00025519,3]
[393188128,1762306240883,-12239.2892921,0.00025519,3]
[393188129,1762306240892,-12391.87,0.00025529,2]
[393188130,1762306240901,-5000.0,0.00025529,2]
[393188131,1762306240910,-999.0,0.00025536,3]
[393188132,1762306240919,-516.86542964,0.00025568,2]
[393188133,1762306240929,-12239.2892921,0.00025658,3]
[393188134,1762306240938,-253.94875355,0.00025663,2]
[393188135,1762306240948,-151.0,0.00025663,2]
[393188136,1762306240956,-151.0,0.00025663,2]
[393188137,1762306240966,-151.0,0.00025663,2]
[393188138,1762306240975,-151.0,0.00025663,2]
[393188139,1762306240985,-151.0,0.00025663,2]
[393188140,1762306240994,-151.0,0.00025663,2]
[393188141,1762306241003,-151.0,0.00025663,2]
[393188142,1762306241012,-151.0,0.00025663,2]
[393188143,1762306241024,-151.0,0.00025663,2]
[393188144,1762306241033,-151.0,0.00025663,2]
[393188145,1762306241043,-151.0,0.00025663,2]
[393188146,1762306241052,-151.0,0.00025663,2]
[393188147,1762306241061,-151.0,0.00025663,2]
[393188148,1762306241070,-151.0,0.00025663,2]
[393188149,1762306241080,-151.0,0.00025663,2]
[393188150,1762306241089,-151.0,0.00025663,2]
[393188151,1762306241098,-151.0,0.00025663,2]
[393188152,1762306241108,-151.0,0.00025663,2]
[393188153,1762306241117,-151.0,0.00025663,2]
[393188154,1762306241128,-151.0,0.00025663,2]
[393188155,1762306241136,-15365.0315767,0.00025668,3]
[393188156,1762306241145,-12239.2892921,0.00025668,3]
[393188157,1762306241154,-500.0,0.00025677,2]
[393188158,1762306241164,-19586.5,0.00025678,2]
[393188159,1762306241173,-219.08071075,0.00025693,2]
[393188160,1762306241182,-500.0,0.00025781,2]
[393188161,1762306241192,-837.91796419,0.00025827,2]
[393188162,1762306241200,-350.0,0.00025868,2]
[393188163,1762306241210,-253.80849945,0.00025868,2]
[393188164,1762306241219,-12239.2892921,0.00025869,3]
[393188165,1762306241227,-20082.02777138,0.00025879,2]
[393188166,1762306241236,-219.08071075,0.00025917,2]
[393188167,1762306241245,-593.19391381,0.0002599,2]
[393188168,1762306241254,-2278.73871483,0.00025994,2]
[393188169,1762306241263,-4468.2095011,0.00026,2]
[393188170,1762306241274,-4138.65,0.00026,2]
[393188171,1762306241283,-213.77330891,0.00026,2]
[393188172,1762306241291,-160.91066148,0.00026,2]
[393188173,1762306241300,-4609.0,0.00026015,2]
[393188174,1762306241309,-837.91796419,0.00026062,2]
[393188175,1762306241319,-250.0,0.00026162,2]
[393188176,1762306241328,-219.08071075,0.00026174,2]
[393188177,1762306241337,-673.2712006,0.0002619,2]
[393188178,1762306241346,-217.2,0.00026333,2]
[393188179,1762306241354,-219.08071075,0.0002634,2]
[393188180,1762306241364,-12239.2892921,0.0002638,3]
[393188181,1762306241373,-15365.0315767,0.0002639,3]
[393188182,1762306241383,-12239.2892921,0.0002639,3]
[393188183,1762306241392,-27142.89166437,0.000264,2]
[393188184,1762306241401,-837.91796419,0.00026414,2]
[393188185,1762306241410,-531.80242415,0.00026416,2]
[393188186,1762306241420,-1852.42,0.00026434,2]
[393188187,1762306241429,-1820.38436719,0.00026546,2]
[393188188,1762306241438,-15365.0315767,0.00026556,3]
[393188189,1762306241447,-12239.2892921,0.00026556,3]
[393188190,1762306241456,-10884.00615792,0.00026566,2]
[393188191,1762306241465,-837.91796419,0.00026583,2]
[393188192,1762306241475,-167.49,0.00026656,2]
[393188193,1762306241483,-6404.099,0.00026666,14]
[393188194,1762306241493,-304.639,0.00026666,14]
[393188195,1762306241502,-1000.0,0.00026667,2]
[393188196,1762306241511,-397.3,0.00026676,2]
[393188197,1762306241523,-219.08071075,0.000268,2]
[393188198,1762306241532,-200.0,0.00026876,2]
[393188199,1762306241542,-12239.2892921,0.00026898,3]
[393188200,1762306241551,-7450.3210998,0.00026908,2]
[393188201,1762306241560,-405.7657011,0.00026927,2]
[393188202,1762306241570,-150.0,0.00026984,2]
[393188203,1762306241579,-1522.0,0.0002699,2]
[393188204,1762306241588,-250.0,0.00027,2]
[393188205,1762306241597,-1020.74370514,0.00027,2]
[393188206,1762306241610,-530.0,0.00027,2]
[393188207,1762306241619,-219.08071075,0.00027012,2]
[393188208,1762306241628,-837.91796419,0.00027026,2]
[393188209,1762306241637,-12239.2892921,0.00027114,3]
[393188210,1762306241647,-167.49,0.00027114,2]
[393188211,1762306241657,-167.49,0.00027114,2]
[393188212,1762306241666,-4855.26064,0.0002712,2]
[393188213,1762306241675,-30730.0631533,0.00027124,3]
[393188214,1762306241684,-24478.5785842,0.00027124,3]
[393188215,1762306241695,-38136.9356595,0.00027134,2]
[393188216,1762306241704,-516.86542964,0.00027142,2]
[393188217,1762306241713,-837.91796422,0.00027169,2]
[393188218,1762306241723,-2278.73871483,0.00027187,2]
[393188219,1762306241732,-167.49,0.00027277,2]
[393188220,1762306241741,-15365.0315767,0.00027287,3]
[393188221,1762306241750,-24478.5785842,0.00027287,3]
[393188222,1762306241760,-167.49,0.00027287,2]
[393188223,1762306241771,-206.99324768,0.00027291,4]
[393188224,1762306241780,-32137.0736,0.00027297,2]
[393188225,1762306241790,-8314.3496,0.00027297,2]
[393188226,1762306241799,-150.0,0.00027323,2]
[393188227,1762306241808,-219.08071081,0.00027324,2]
[393188228,1762306241819,-167.49,0.00027363,2]
[393188229,1762306241829,-167.49,0.00027368,2]
[393188230,1762306241840,-12239.2892921,0.0002737,3]
[393188231,1762306241850,-500.0,0.00027373,2]
[393188232,1762306241860,-500.0,0.00027373,2]
[393188233,1762306241870,-500.0,0.00027373,2]
[393188234,1762306241879,-500.0,0.00027373,2]
[393188235,1762306241889,-160.17732397,0.00027373,2]
[393188236,1762306241899,-500.0,0.00027373,2]
[393188237,1762306241908,-500.0,0.00027373,2]
[393188238,1762306241918,-161.1596466,0.00027373,2]
[393188239,1762306241928,-500.0,0.00027373,2]
[393188240,1762306241937,-500.0,0.00027373,2]
[393188241,1762306241947,-500.0,0.00027373,2]
[393188242,1762306241956,-500.0,0.00027373,2]
[393188243,1762306241965,-150.0,0.00027373,2]
[393188244,1762306241975,-150.0,0.00027373,2]
[393188245,1762306241992,-150.0,0.00027373,2]
[393188246,1762306242002,-150.0,0.00027373,2]
[393188247,1762306242014,-150.0,0.00027373,2]
[393188248,1762306242028,-150.0,0.00027373,2]
[393188249,1762306242038,-150.0,0.00027373,2]
[393188250,1762306242048,-150.0,0.00027373,2]
[393188251,1762306242059,-150.0,0.00027373,2]
[393188252,1762306242070,-500.0,0.00027373,2]
[393188253,1762306242079,-500.0,0.00027373,2]
[393188254,1762306242090,-500.0,0.00027373,2]
[393188255,1762306242099,-205.38813465,0.00027373,2]
[393188256,1762306242109,-150.0,0.00027373,2]
[393188257,1762306242119,-150.0,0.00027373,2]
[393188258,1762306242129,-150.0,0.00027373,2]
[393188259,1762306242139,-150.0,0.00027373,2]
[393188260,1762306242148,-150.0,0.00027373,2]
[393188261,1762306242158,-48957.1571684,0.00027377,3]
[393188262,1762306242167,-167.49,0.00027377,2]
[393188263,1762306242176,-167.49,0.00027377,2]
[393188264,1762306242187,-167.49,0.00027377,2]
[393188265,1762306242196,-15365.0315767,0.0002738,3]
[393188266,1762306242206,-167.49,0.0002738,2]
[393188267,1762306242216,-92190.1894599,0.00027387,3]
[393188268,1762306242227,-64516.77965375,0.00027387,3]
[393188269,1762306242387,-10987.98472058,0.00027387,3]
[393188271,1762306242495,-2286.02418919,0.00027387,3]
[393188272,1762306242517,-7280.26337069,0.00027387,3]
[393188276,1762306242814,-603.97311059,0.00027387,3]
[393188277,1762306242825,-130.0726352,0.00027387,2]
[393188278,1762306242837,-37.4173648,0.00027387,2]
[393188279,1762306242847,-167.49,0.00027387,2]
[393188280,1762306242858,-167.49,0.00027387,2]
[393188281,1762306242868,-167.49,0.00027387,2]
[393188282,1762306242878,-799.00288877,0.0002739,2]
[393188283,1762306242890,-441.452,0.0002739,2]
[393188284,1762306242944,-461.412428,0.0002739,2]
[393188285,1762306242956,-1012.85979988,0.0002739,2]
[393188286,1762306242967,-1130.40073013,0.0002739,2]
[393188287,1762306242979,-212.24478591,0.0002739,2]
[393188288,1762306242989,-2401.93744871,0.0002739,2]
[393188289,1762306243000,-5613.01021137,0.0002739,2]
[393188290,1762306243009,-3199.31947073,0.0002739,2]
[393188291,1762306243022,-266.319,0.00027396,2]
[393188292,1762306243031,-500.0,0.00027396,2]
[393188293,1762306243040,-500.0,0.00027396,2]
[393188294,1762306243049,-232.93328635,0.00027397,2]
[393188295,1762306243059,-161.64801749,0.00027397,2]
[393188296,1762306243069,-7310.3522428,0.00027397,2]
[393188297,1762306243079,-151.0,0.00027397,31]
[393188298,1762306243088,-156.384792,0.00027397,31]
[393188299,1762306243097,-151.0,0.00027397,31]
[393188300,1762306243107,-151.0,0.00027397,31]
[393188301,1762306243115,-151.0,0.00027397,31]
[393188302,1762306243125,-158.042219,0.00027397,31]
[393188303,1762306243134,-24247.98836026,0.00027397,2]
[393188304,1762306243146,-126426.99253976,0.00027397,2]
[393188305,1762306243156,-33081.82,0.00027397,2]
[393188306,1762306243165,-164.01,0.000274,7]
[393188307,1762306243175,-1522.0,0.00027417,7]
[393188308,1762306243185,-500.0,0.00027498,2]
[393188309,1762306243194,-542.12712724,0.000275,2]